[Event "MCR rapid mládeže 2023 U16"]
[Site "Harachov, Czech Republic"]
[Date "2023.09.10"]
[Round "8.23"]
[White "Barteckova, Nikol"]
[Black "Kusova, Nikola"]
[Result "1-0"]
[TimeControl "20min+5s/move"]
[WhiteElo "1246"]
[BlackElo "1247"]

1. e4 {[%clk 00:20:08]} {[%emt 00:00:02]} e5 {[%clk 00:20:08]} {[%emt
00:00:02]} 2. Nc3 {[%clk 00:20:12]} {[%emt 00:00:02]} Nf6 {[%clk 00:20:11]}
{[%emt 00:00:01]} 3. f4 {[%clk 00:20:15]} {[%emt 00:00:02]} Nc6 {[%clk
00:19:31]} {[%emt 00:00:46]} 4. Nf3 {[%clk 00:19:55]} {[%emt 00:00:25]} d6
{[%clk 00:19:03]} {[%emt 00:00:32]} 5. f5 {[%clk 00:19:37]} {[%emt 00:00:23]}
Be7 {[%clk 00:18:38]} {[%emt 00:00:30]} 6. Bc4 {[%clk 00:18:52]} {[%emt
00:00:51]} O-O {[%clk 00:18:09]} {[%emt 00:00:33]} 7. O-O {[%clk 00:18:50]}
{[%emt 00:00:07]} Nd4 {[%clk 00:14:21]} {[%emt 00:03:53]} 8. d3 {[%clk
00:16:59]} {[%emt 00:01:57]} Nxf3+ {[%clk 00:11:52]} {[%emt 00:02:34]} 9. Qxf3
{[%clk 00:16:56]} {[%emt 00:00:07]} Bd7 {[%clk 00:11:52]} {[%emt 00:00:05]} 10.
Nd5 {[%clk 00:15:49]} {[%emt 00:01:12]} Nxd5 {[%clk 00:10:38]} {[%emt
00:01:19]} 11. Bxd5 {[%clk 00:15:10]} {[%emt 00:00:44]} c6 {[%clk 00:10:22]}
{[%emt 00:00:21]} 12. Bb3 {[%clk 00:15:05]} {[%emt 00:00:09]} a5 {[%clk
00:07:33]} {[%emt 00:02:55]} 13. a3 {[%clk 00:14:17]} {[%emt 00:00:54]} a4
{[%clk 00:07:31]} {[%emt 00:00:07]} 14. Ba2 {[%clk 00:14:21]} Bg5 {[%clk
00:07:05]} {[%emt 00:00:32]} 15. Be3 {[%clk 00:13:05]} {[%emt 00:01:20]} Bxe3+
{[%clk 00:06:38]} {[%emt 00:00:32]} 16. Qxe3 {[%clk 00:13:07]} {[%emt
00:00:02]} Ra5 {[%clk 00:06:27]} {[%emt 00:00:17]} 17. Rab1 {[%clk 00:08:15]}
{[%emt 00:04:58]} Rb5 {[%clk 00:06:07]} {[%emt 00:00:25]} 18. Qf2 {[%clk
00:07:01]} {[%emt 00:01:17]} Qb6 {[%clk 00:05:32]} {[%emt 00:00:41]} 19. Bc4
{[%clk 00:06:43]} {[%emt 00:00:23]} Qxf2+ {[%clk 00:05:34]} {[%emt 00:00:03]}
20. Rxf2 {[%clk 00:06:47]} {[%emt 00:00:01]} Ra5 {[%clk 00:05:30]} {[%emt
00:00:09]} 21. Rbf1 {[%clk 00:06:35]} {[%emt 00:00:17]} d5 {[%clk 00:04:51]}
{[%emt 00:00:45]} 22. Ba2 {[%clk 00:06:05]} {[%emt 00:00:35]} f6 {[%clk
00:04:02]} {[%emt 00:00:53]} 23. g4 {[%clk 00:05:55]} {[%emt 00:00:15]} Kh8
{[%clk 00:03:47]} {[%emt 00:00:21]} 24. h4 {[%clk 00:05:44]} {[%emt 00:00:16]}
h6 {[%clk 00:03:49]} {[%emt 00:00:03]} 25. Rh2 {[%clk 00:05:41]} {[%emt
00:00:07]} Be8 {[%clk 00:02:47]} {[%emt 00:01:07]} 26. Rff2 {[%clk 00:05:11]}
{[%emt 00:00:35]} Bf7 {[%clk 00:02:46]} {[%emt 00:00:07]} 27. Rfg2 {[%clk
00:04:42]} {[%emt 00:00:34]} d4 {[%clk 00:02:32]} {[%emt 00:00:19]} 28. Bxf7
{[%clk 00:04:20]} {[%emt 00:00:27]} Rxf7 {[%clk 00:02:36]} {[%emt 00:00:01]} 29.
c3 {[%clk 00:03:59]} {[%emt 00:00:25]} c5 {[%clk 00:02:08]} {[%emt 00:00:34]}
30. c4 {[%clk 00:03:39]} {[%emt 00:00:25]} Ra8 {[%clk 00:02:06]} {[%emt
00:00:07]} 31. g5 {[%clk 00:03:33]} {[%emt 00:00:11]} h5 {[%clk 00:02:09]}
{[%emt 00:00:02]} 32. Kf2 {[%clk 00:03:12]} {[%emt 00:00:25]} Ra6 {[%clk
00:01:36]} {[%emt 00:00:38]} 33. Kf3 {[%clk 00:03:00]} {[%emt 00:00:18]} Rb6
{[%clk 00:01:38]} {[%emt 00:00:02]} 34. Rh1 {[%clk 00:03:01]} {[%emt 00:00:04]}
Rb3 {[%clk 00:01:39]} {[%emt 00:00:04]} 35. Rd1 {[%clk 00:02:54]} {[%emt
00:00:12]} Rc7 {[%clk 00:01:24]} {[%emt 00:00:20]} 36. Rdd2 {[%clk 00:02:54]}
{[%emt 00:00:05]} Rc6 {[%clk 00:01:06]} {[%emt 00:00:23]} 37. Ke2 {[%clk
00:02:24]} {[%emt 00:00:34]} Rcb6 {[%clk 00:01:08]} {[%emt 00:00:04]} 38. Kd1
{[%clk 00:02:28]} {[%emt 00:00:01]} Rc6 {[%clk 00:00:52]} {[%emt 00:00:21]} 39.
Kc1 {[%clk 00:02:32]} {[%emt 00:00:01]} Rc7 {[%clk 00:00:55]} {[%emt 00:00:02]}
40. Rg3 {[%clk 00:02:24]} {[%emt 00:00:13]} Rd7 {[%clk 00:00:51]} {[%emt
00:00:10]} 41. Rdg2 {[%clk 00:02:27]} {[%emt 00:00:01]} Rb6 {[%clk 00:00:46]}
{[%emt 00:00:10]} 42. Kc2 {[%clk 00:02:25]} {[%emt 00:00:07]} Rc6 {[%clk
00:00:49]} {[%emt 00:00:02]} 43. Rg1 {[%clk 00:02:26]} {[%emt 00:00:03]} Rb6
{[%clk 00:00:52]} {[%emt 00:00:02]} 44. Rb1 {[%clk 00:02:29]} {[%emt 00:00:02]}
Rc7 {[%clk 00:00:53]} {[%emt 00:00:05]} 45. b3 {[%clk 00:02:16]} {[%emt
00:00:18]} Ra6 {[%clk 00:00:50]} {[%emt 00:00:08]} 46. b4 {[%clk 00:02:12]}
{[%emt 00:00:09]} Rac6 {[%clk 00:00:51]} {[%emt 00:00:03]} 47. Rb2 {[%clk
00:02:03]} {[%emt 00:00:14]} Rd7 {[%clk 00:00:53]} {[%emt 00:00:03]} 48. Rg1
{[%clk 00:02:07]} {[%emt 00:00:02]} Rcc7 {[%clk 00:00:55]} {[%emt 00:00:03]} 49.
Rgb1 {[%clk 00:02:02]} {[%emt 00:00:09]} b6 {[%clk 00:00:58]} {[%emt 00:00:03]}
50. Rg1 {[%clk 00:02:00]} {[%emt 00:00:07]} Rd8 {[%clk 00:00:58]} {[%emt
00:00:04]} 51. Kb1 {[%clk 00:01:58]} {[%emt 00:00:07]} Rg8 {[%clk 00:01:00]}
{[%emt 00:00:03]} 52. Rbg2 {[%clk 00:02:01]} {[%emt 00:00:02]} Rc6 {[%clk
00:00:57]} {[%emt 00:00:08]} 53. Ka2 {[%clk 00:02:04]} {[%emt 00:00:03]} Rd6
{[%clk 00:00:59]} {[%emt 00:00:02]} 54. Rb1 {[%clk 00:01:57]} {[%emt 00:00:13]}
Rb8 {[%clk 00:00:58]} {[%emt 00:00:05]} 55. bxc5 {[%clk 00:01:55]} {[%emt
00:00:07]} Rc6 {[%clk 00:01:00]} {[%emt 00:00:04]} 56. cxb6 {[%clk 00:01:56]}
{[%emt 00:00:04]} Rcxb6 {[%clk 00:01:04]} {[%emt 00:00:01]} 57. Rxb6 {[%clk
00:01:48]} {[%emt 00:00:13]} Rxb6 {[%clk 00:01:08]} {[%emt 00:00:01]} 58. gxf6
{[%clk 00:01:38]} {[%emt 00:00:15]} gxf6 {[%clk 00:01:11]} {[%emt 00:00:01]} 59.
Rb2 {[%clk 00:01:39]} {[%emt 00:00:04]} Rc6 {[%clk 00:01:13]} {[%emt 00:00:04]}
60. Rb4 {[%clk 00:01:40]} {[%emt 00:00:04]} Ra6 {[%clk 00:01:15]} {[%emt
00:00:03]} 61. Kb2 {[%clk 00:01:36]} {[%emt 00:00:09]} Kg7 {[%clk 00:01:17]}
{[%emt 00:00:02]} 62. Kc2 {[%clk 00:01:39]} {[%emt 00:00:03]} Kf8 {[%clk
00:01:20]} {[%emt 00:00:02]} 63. Kb2 {[%clk 00:01:33]} {[%emt 00:00:11]} Ke7
{[%clk 00:01:23]} {[%emt 00:00:01]} 64. Ka2 {[%clk 00:01:37]} {[%emt 00:00:02]}
Kd8 {[%clk 00:01:22]} {[%emt 00:00:06]} 65. Rb7 {[%clk 00:01:36]} {[%emt
00:00:02]} Ke8 {[%clk 00:01:03]} {[%emt 00:00:27]} 66. c5 {[%clk 00:01:09]}
{[%emt 00:00:31]} Rc6 {[%clk 00:01:01]} {[%emt 00:00:08]} 67. Rb5 {[%clk
00:01:06]} {[%emt 00:00:08]} Kd7 {[%clk 00:00:59]} {[%emt 00:00:07]} 68. Ra5
{[%clk 00:01:03]} {[%emt 00:00:07]} Kc8 {[%clk 00:00:49]} {[%emt 00:00:14]} 69.
Kb2 {[%clk 00:00:59]} {[%emt 00:00:11]} Kd7 {[%clk 00:00:48]} {[%emt 00:00:06]}
70. Rxa4 {[%clk 00:00:51]} {[%emt 00:00:14]} Rxc5 {[%clk 00:00:52]} {[%emt
00:00:01]} 71. Rc4 {[%clk 00:00:38]} {[%emt 00:00:12]} Rb5+ {[%clk 00:00:55]}
{[%emt 00:00:02]} 72. Kc2 {[%clk 00:00:42]} {[%emt 00:00:06]} Ra5 {[%clk
00:00:56]} {[%emt 00:00:03]} 73. a4 {[%clk 00:00:44]} {[%emt 00:00:04]} Ra7
{[%clk 00:00:51]} {[%emt 00:00:09]} 74. Kb3 {[%clk 00:00:48]} {[%emt 00:00:02]}
Rb7+ {[%clk 00:00:54]} {[%emt 00:00:03]} 75. Ka3 {[%clk 00:00:48]} {[%emt
00:00:05]} Ra7 {[%clk 00:00:54]} {[%emt 00:00:04]} 76. Rc5 {[%clk 00:00:49]}
{[%emt 00:00:04]} Rb7 {[%clk 00:00:55]} {[%emt 00:00:05]} 77. a5 {[%clk
00:00:49]} {[%emt 00:00:05]} Ra7 {[%clk 00:00:56]} {[%emt 00:00:03]} 78. Kb4
{[%clk 00:00:50]} {[%emt 00:00:04]} Rb7+ {[%clk 00:01:00]} {[%emt 00:00:01]} 79.
Rb5 {[%clk 00:00:53]} {[%emt 00:00:02]} Rc7 {[%clk 00:01:02]} {[%emt 00:00:03]}
80. Rc5 {[%clk 00:00:51]} {[%emt 00:00:07]} Rb7+ {[%clk 00:01:06]} 81. Kc4
{[%clk 00:00:53]} {[%emt 00:00:03]} Ra7 {[%clk 00:01:07]} {[%emt 00:00:03]} 82.
Kb5 {[%clk 00:00:49]} {[%emt 00:00:10]} Rb7+ {[%clk 00:01:07]} {[%emt
00:00:05]} 83. Ka6 {[%clk 00:00:48]} {[%emt 00:00:06]} Rb3 {[%clk 00:01:11]}
{[%emt 00:00:01]} 84. Rb5 {[%clk 00:00:37]} {[%emt 00:00:17]} Rxd3 {[%clk
00:01:12]} {[%emt 00:00:04]} 85. Kb6 {[%clk 00:00:41]} {[%emt 00:00:01]} Rc3
{[%clk 00:01:09]} {[%emt 00:00:07]} 86. Rd5+ {[%clk 00:00:41]} {[%emt
00:00:05]} Kc8 {[%clk 00:00:59]} {[%emt 00:00:15]} 87. a6 {[%clk 00:00:44]}
{[%emt 00:00:03]} Rb3+ {[%clk 00:00:53]} {[%emt 00:00:10]} 88. Kc5 {[%clk
00:00:43]} {[%emt 00:00:07]} Rc3+ {[%clk 00:00:49]} {[%emt 00:00:07]} 89. Kb4
{[%clk 00:00:47]} {[%emt 00:00:02]} Rc6 {[%clk 00:00:48]} {[%emt 00:00:05]} 90.
Kb5 {[%clk 00:00:48]} {[%emt 00:00:05]} Rc7 {[%clk 00:00:48]} {[%emt 00:00:05]}
91. Rd6 {[%clk 00:00:48]} {[%emt 00:00:05]} Rc2 {[%clk 00:00:42]} {[%emt
00:00:11]} 92. a7 {[%clk 00:00:34]} {[%emt 00:00:20]} Rb2+ {[%clk 00:00:46]}
{[%emt 00:00:01]} 93. Kc4 {[%clk 00:00:28]} {[%emt 00:00:10]} Kb7 {[%clk
00:00:46]} {[%emt 00:00:05]} 94. Rxf6 {[%clk 00:00:26]} {[%emt 00:00:07]} Kxa7
{[%clk 00:00:43]} {[%emt 00:00:09]} 95. Re6 {[%clk 00:00:27]} {[%emt 00:00:04]}
Rc2+ {[%clk 00:00:38]} {[%emt 00:00:10]} 96. Kd3 {[%clk 00:00:30]} Rc3+ {[%clk
00:00:41]} {[%emt 00:00:02]} 97. Kd2 {[%clk 00:00:31]} {[%emt 00:00:03]} Rc5
{[%clk 00:00:40]} {[%emt 00:00:07]} 98. Rh6 {[%clk 00:00:31]} {[%emt 00:00:06]}
Ra5 {[%clk 00:00:32]} {[%emt 00:00:12]} 99. Rxh5 {[%clk 00:00:32]} {[%emt
00:00:04]} Ra2+ {[%clk 00:00:36]} {[%emt 00:00:01]} 100. Kc1 {[%clk 00:00:31]}
{[%emt 00:00:04]} d3 {[%clk 00:00:37]} {[%emt 00:00:06]} 101. Rh7+ {[%clk
00:00:31]} {[%emt 00:00:05]} Kb6 {[%clk 00:00:40]} {[%emt 00:00:02]} 102. Rd7
{[%clk 00:00:33]} Rc2+ {[%clk 00:00:42]} {[%emt 00:00:06]} 103. Kd1 {[%clk
00:00:32]} {[%emt 00:00:03]} Rc3 {[%clk 00:00:40]} {[%emt 00:00:08]} 104. Kd2
{[%clk 00:00:36]} {[%emt 00:00:02]} Rc2+ {[%clk 00:00:38]} {[%emt 00:00:07]}
105. Kxd3 {[%emt 00:00:06]} Rh2 {[%emt 00:00:02]} 106. Rh7 {[%emt 00:00:14]}
Rh3+ {[%emt 00:00:02]} 107. Ke2 {[%clk 00:00:30]} Ra3 {[%clk 00:00:25]} {[%emt
00:00:23]} 108. h5 {[%clk 00:00:29]} {[%emt 00:00:07]} Ra2+ {[%clk 00:00:23]}
{[%emt 00:00:08]} 109. Kf3 {[%clk 00:00:33]} {[%emt 00:00:01]} Ra3+ {[%clk
00:00:23]} {[%emt 00:00:05]} 110. Kg4 {[%clk 00:00:33]} {[%emt 00:00:03]} Re3
{[%clk 00:00:26]} {[%emt 00:00:03]} 111. Re7 {[%clk 00:00:32]} {[%emt
00:00:06]} Rxe4+ {[%clk 00:00:29]} {[%emt 00:00:02]} 112. Kg5 {[%clk 00:00:36]}
Re1 {[%clk 00:00:29]} {[%emt 00:00:06]} 113. f6 {[%clk 00:00:37]} {[%emt
00:00:04]} Rg1+ {[%clk 00:00:29]} {[%emt 00:00:05]} 114. Kf5 {[%clk 00:00:34]}
{[%emt 00:00:03]} 1-0

[Event "MCR rapid mládeže 2023 U16"]
[Site "Harachov, Czech Republic"]
[Date "2023.09.10"]
[Round "8.24"]
[White "Kratka, Tereza"]
[Black "Jakubse, Tamae Severina"]
[Result "1-0"]
[TimeControl "20min+5s/move"]
[WhiteElo "1147"]
[BlackElo "1223"]

1. c4 {[%clk 00:20:28]} e5 {[%clk 00:20:28]} {[%emt 00:00:02]} 2. Nc3 {[%clk
00:20:32]} {[%emt 00:00:02]} Nf6 {[%clk 00:20:30]} {[%emt 00:00:02]} 3. g3
{[%clk 00:20:34]} {[%emt 00:00:04]} Bb4 {[%clk 00:20:13]} {[%emt 00:00:21]} 4.
Bg2 {[%clk 00:20:30]} {[%emt 00:00:09]} Nc6 {[%clk 00:19:41]} {[%emt 00:00:37]}
5. a3 {[%clk 00:20:33]} {[%emt 00:00:03]} Bxc3 {[%clk 00:19:43]} {[%emt
00:00:03]} 6. bxc3 {[%clk 00:20:36]} {[%emt 00:00:02]} d6 {[%clk 00:19:22]}
{[%emt 00:00:26]} 7. Nf3 {[%clk 00:20:37]} {[%emt 00:00:04]} Be6 {[%clk
00:18:48]} {[%emt 00:00:38]} 8. d3 {[%clk 00:20:27]} {[%emt 00:00:15]} h6
{[%clk 00:18:34]} {[%emt 00:00:20]} 9. O-O {[%clk 00:20:26]} {[%emt 00:00:06]}
O-O {[%clk 00:18:33]} {[%emt 00:00:06]} 10. Bb2 {[%clk 00:20:28]} {[%emt
00:00:02]} Qd7 {[%clk 00:18:04]} {[%emt 00:00:35]} 11. Nd2 {[%clk 00:20:22]}
{[%emt 00:00:11]} Bh3 {[%clk 00:17:22]} {[%emt 00:00:47]} 12. Qc2 {[%clk
00:20:08]} {[%emt 00:00:19]} Bxg2 {[%clk 00:17:09]} {[%emt 00:00:18]} 13. Kxg2
{[%clk 00:20:12]} {[%emt 00:00:01]} d5 {[%clk 00:16:04]} {[%emt 00:01:11]} 14.
cxd5 {[%clk 00:20:00]} {[%emt 00:00:16]} Qxd5+ {[%clk 00:15:49]} {[%emt
00:00:20]} 15. e4 {[%clk 00:19:42]} {[%emt 00:00:23]} Qd7 {[%clk 00:15:02]}
{[%emt 00:00:52]} 16. Nf3 {[%clk 00:19:40]} {[%emt 00:00:07]} Rad8 {[%clk
00:14:35]} {[%emt 00:00:32]} 17. d4 {[%clk 00:19:22]} {[%emt 00:00:23]} exd4
{[%clk 00:14:06]} {[%emt 00:00:34]} 18. cxd4 {[%clk 00:19:23]} {[%emt
00:00:04]} Nh7 {[%clk 00:12:43]} {[%emt 00:01:28]} 19. d5 {[%clk 00:19:07]}
{[%emt 00:00:21]} Ne7 {[%clk 00:12:22]} {[%emt 00:00:26]} 20. Qc3 {[%clk
00:19:09]} {[%emt 00:00:03]} f6 {[%clk 00:11:42]} {[%emt 00:00:44]} 21. Qb3
{[%clk 00:19:05]} {[%emt 00:00:09]} Kh8 {[%clk 00:11:30]} {[%emt 00:00:18]} 22.
Rab1 {[%clk 00:18:32]} {[%emt 00:00:39]} c6 {[%clk 00:11:19]} {[%emt 00:00:16]}
23. dxc6 {[%clk 00:18:11]} {[%emt 00:00:25]} Qxc6 {[%clk 00:10:42]} {[%emt
00:00:42]} 24. Rfe1 {[%clk 00:17:49]} {[%emt 00:00:26]} Qa6 {[%clk 00:08:45]}
{[%emt 00:02:00]} 25. Bd4 {[%clk 00:17:19]} {[%emt 00:00:38]} b6 {[%clk
00:08:22]} {[%emt 00:00:29]} 26. h4 {[%clk 00:16:40]} {[%emt 00:00:44]} Nc6
{[%clk 00:08:15]} {[%emt 00:00:11]} 27. Bc3 {[%clk 00:15:51]} {[%emt 00:00:54]}
Rd3 {[%clk 00:08:03]} {[%emt 00:00:17]} 28. Rec1 {[%clk 00:15:24]} {[%emt
00:00:32]} Na5 {[%clk 00:07:32]} {[%emt 00:00:36]} 29. Qb2 {[%clk 00:13:32]}
{[%emt 00:01:58]} Qb7 {[%clk 00:04:52]} {[%emt 00:02:43]} 30. Re1 {[%clk
00:11:52]} {[%emt 00:01:45]} Nc4 {[%clk 00:04:33]} {[%emt 00:00:25]} 31. Qc2
{[%clk 00:11:24]} {[%emt 00:00:33]} Rfd8 {[%clk 00:04:09]} {[%emt 00:00:29]} 32.
Bb4 {[%clk 00:11:02]} {[%emt 00:00:27]} Ne5 {[%clk 00:03:40]} {[%emt 00:00:34]}
33. Nxe5 {[%clk 00:10:04]} {[%emt 00:01:03]} fxe5 {[%clk 00:03:44]} {[%emt
00:00:02]} 34. f3 {[%clk 00:09:38]} {[%emt 00:00:31]} Qf7 {[%clk 00:03:11]}
{[%emt 00:00:36]} 35. Rf1 {[%clk 00:09:15]} {[%emt 00:00:28]} Qd7 {[%clk
00:03:04]} {[%emt 00:00:12]} 36. g4 {[%clk 00:08:36]} {[%emt 00:00:45]} Rc8
{[%clk 00:02:44]} {[%emt 00:00:25]} 37. Qb2 {[%clk 00:08:14]} {[%emt 00:00:27]}
a5 {[%clk 00:02:00]} {[%emt 00:00:49]} 38. Be1 {[%clk 00:07:57]} {[%emt
00:00:21]} Rc6 {[%clk 00:01:32]} {[%emt 00:00:34]} 39. Qxe5 {[%clk 00:07:26]}
{[%emt 00:00:36]} Rxa3 {[%clk 00:01:09]} {[%emt 00:00:29]} 40. Qb8+ {[%clk
00:07:11]} {[%emt 00:00:19]} Qc8 {[%clk 00:01:04]} {[%emt 00:00:10]} 41. Qxc8+
{[%clk 00:07:02]} {[%emt 00:00:14]} Rxc8 {[%clk 00:01:08]} {[%emt 00:00:01]} 42.
Rxb6 {[%clk 00:06:50]} {[%emt 00:00:16]} Nf6 {[%clk 00:00:54]} {[%emt
00:00:18]} 43. Ra6 {[%clk 00:05:56]} {[%emt 00:01:01]} a4 {[%clk 00:00:39]}
{[%emt 00:00:20]} 44. Bb4 {[%clk 00:05:17]} {[%emt 00:00:43]} Ra2+ {[%clk
00:00:39]} {[%emt 00:00:05]} 45. Kg3 {[%clk 00:05:11]} {[%emt 00:00:11]} Rb8
{[%clk 00:00:36]} {[%emt 00:00:07]} 46. Bc3 {[%clk 00:04:50]} {[%emt 00:00:27]}
Ne8 {[%clk 00:00:35]} {[%emt 00:00:06]} 47. Rg6 {[%clk 00:04:30]} {[%emt
00:00:25]} Kh7 {[%clk 00:00:29]} {[%emt 00:00:12]} 48. h5 {[%clk 00:04:32]}
{[%emt 00:00:02]} Rb3 {[%clk 00:00:26]} {[%emt 00:00:08]} 49. Be5 {[%clk
00:04:14]} {[%emt 00:00:22]} Rd3 {[%clk 00:00:19]} {[%emt 00:00:13]} 50. Rc1
{[%clk 00:04:02]} {[%emt 00:00:16]} Rdd2 {[%clk 00:00:22]} {[%emt 00:00:03]} 51.
Kf4 {[%clk 00:03:36]} {[%emt 00:00:30]} Rd8 {[%clk 00:00:18]} {[%emt 00:00:10]}
52. Rb1 {[%clk 00:03:19]} {[%emt 00:00:20]} Rad2 {[%clk 00:00:16]} {[%emt
00:00:08]} 53. Rb7 {[%clk 00:02:46]} {[%emt 00:00:38]} R2d7 {[%clk 00:00:19]}
{[%emt 00:00:01]} 54. Rb4 {[%clk 00:02:32]} {[%emt 00:00:19]} Ra7 {[%clk
00:00:19]} {[%emt 00:00:06]} 55. Rb8 {[%clk 00:02:03]} {[%emt 00:00:34]} Rxb8
56. Bxb8 {[%clk 00:02:06]} Rf7+ {[%clk 00:00:18]} {[%emt 00:00:07]} 57. Ke3
{[%clk 00:01:55]} {[%emt 00:00:15]} a3 {[%clk 00:00:21]} {[%emt 00:00:03]} 58.
Be5 {[%clk 00:01:55]} {[%emt 00:00:04]} Ra7 {[%clk 00:00:24]} {[%emt 00:00:03]}
59. Kf4 {[%clk 00:01:42]} {[%emt 00:00:18]} a2 {[%clk 00:00:26]} {[%emt
00:00:03]} 60. Ba1 {[%clk 00:01:44]} {[%emt 00:00:02]} Rf7+ {[%clk 00:00:27]}
{[%emt 00:00:05]} 61. Kg3 {[%clk 00:01:39]} {[%emt 00:00:10]} Ra7 {[%clk
00:00:27]} {[%emt 00:00:06]} 62. Kh4 {[%clk 00:01:08]} {[%emt 00:00:34]} Ra3
{[%clk 00:00:25]} {[%emt 00:00:08]} 63. f4 {[%clk 00:00:43]} {[%emt 00:00:30]}
Nf6 {[%clk 00:00:24]} {[%emt 00:00:06]} 64. e5 {[%clk 00:00:38]} {[%emt
00:00:10]} Ne4 {[%clk 00:00:27]} {[%emt 00:00:01]} 65. e6 {[%clk 00:00:32]}
{[%emt 00:00:11]} Nf6 {[%clk 00:00:23]} {[%emt 00:00:10]} 66. g5 {[%clk
00:00:11]} {[%emt 00:00:26]} hxg5+ {[%clk 00:00:21]} {[%emt 00:00:07]} 67. Rxg5
{[%clk 00:00:14]} {[%emt 00:00:01]} Re3 {[%clk 00:00:17]} {[%emt 00:00:09]} 68.
Re5 {[%clk 00:00:15]} {[%emt 00:00:05]} Rxe5 {[%clk 00:00:13]} {[%emt
00:00:09]} 69. fxe5 {[%clk 00:00:19]} Ne8 {[%clk 00:00:12]} {[%emt 00:00:07]}
70. Kg5 {[%clk 00:00:23]} {[%emt 00:00:01]} Nc7 {[%clk 00:00:12]} {[%emt
00:00:05]} 71. e7 {[%clk 00:00:25]} {[%emt 00:00:02]} Ne8 {[%clk 00:00:15]}
{[%emt 00:00:02]} 72. e6 {[%clk 00:00:29]} {[%emt 00:00:02]} Nc7 {[%clk
00:00:18]} {[%emt 00:00:01]} 73. Kf5 {[%clk 00:00:31]} {[%emt 00:00:02]} Ne8
{[%clk 00:00:21]} {[%emt 00:00:03]} 74. Ke5 {[%clk 00:00:34]} {[%emt 00:00:03]}
g6 {[%clk 00:00:22]} {[%emt 00:00:03]} 75. Kd6 {[%clk 00:00:37]} {[%emt
00:00:02]} gxh5+ {[%clk 00:00:23]} {[%emt 00:00:03]} 76. Kd7 {[%clk 00:00:41]}
{[%emt 00:00:02]} Nf6+ {[%emt 00:00:08]} 77. Kd8 {[%clk 00:00:37]} {[%emt
00:00:33]} Kg7 {[%emt 00:00:15]} 78. e8=Q {[%clk 00:00:37]} {[%emt 00:00:03]}
1-0

[Event "MCR rapid mládeže 2023 U16"]
[Site "Harachov, Czech Republic"]
[Date "2023.09.10"]
[Round "8.25"]
[White "Vancakova, Veronika"]
[Black "Mojzisova, Barbora"]
[Result "0-1"]
[TimeControl "20min+5s/move"]
[WhiteElo "1433"]
[BlackElo "1220"]

1. d4 {[%clk 00:20:09]} d5 {[%clk 00:20:09]} {[%emt 00:00:02]} 2. c4 {[%clk
00:20:12]} {[%emt 00:00:02]} e6 {[%clk 00:20:13]} {[%emt 00:00:02]} 3. Nc3
{[%clk 00:20:16]} {[%emt 00:00:01]} Nf6 {[%clk 00:20:16]} {[%emt 00:00:01]} 4.
Bg5 {[%clk 00:20:20]} Be7 {[%clk 00:20:20]} {[%emt 00:00:02]} 5. e3 {[%clk
00:20:23]} {[%emt 00:00:03]} O-O {[%clk 00:20:18]} {[%emt 00:00:06]} 6. Nf3
{[%clk 00:20:26]} {[%emt 00:00:02]} Nc6 {[%clk 00:20:20]} {[%emt 00:00:03]} 7.
Bd3 {[%clk 00:20:16]} {[%emt 00:00:15]} h6 {[%clk 00:20:00]} {[%emt 00:00:25]}
8. Bh4 {[%clk 00:20:18]} {[%emt 00:00:02]} dxc4 {[%clk 00:19:40]} {[%emt
00:00:26]} 9. Bxc4 {[%clk 00:20:22]} {[%emt 00:00:02]} Bd7 {[%clk 00:19:09]}
{[%emt 00:00:34]} 10. O-O {[%clk 00:20:20]} {[%emt 00:00:08]} Ne8 {[%clk
00:18:40]} {[%emt 00:00:34]} 11. Bg3 {[%clk 00:20:15]} {[%emt 00:00:10]} Nd6
{[%clk 00:18:18]} {[%emt 00:00:27]} 12. Bd3 {[%clk 00:19:59]} {[%emt 00:00:20]}
Nb4 {[%clk 00:17:33]} {[%emt 00:00:48]} 13. Bb1 {[%clk 00:19:50]} {[%emt
00:00:17]} Bc6 {[%clk 00:16:29]} {[%emt 00:01:00]} 14. a3 {[%clk 00:19:23]}
{[%emt 00:00:41]} Nd5 {[%clk 00:16:17]} {[%emt 00:00:14]} 15. Qd3 {[%clk
00:17:26]} {[%emt 00:02:05]} g6 {[%clk 00:14:52]} {[%emt 00:01:29]} 16. Ne5
{[%clk 00:16:44]} {[%emt 00:00:48]} Nf5 {[%clk 00:12:11]} {[%emt 00:02:45]} 17.
Nxd5 {[%clk 00:14:01]} {[%emt 00:02:48]} exd5 {[%clk 00:11:58]} {[%emt
00:00:18]} 18. Nxc6 {[%clk 00:13:56]} {[%emt 00:00:10]} bxc6 {[%clk 00:11:58]}
{[%emt 00:00:06]} 19. Bf4 {[%clk 00:13:25]} {[%emt 00:00:36]} Bg5 {[%clk
00:11:06]} {[%emt 00:00:56]} 20. Bxg5 {[%clk 00:12:09]} {[%emt 00:01:22]} Qxg5
{[%clk 00:11:05]} {[%emt 00:00:06]} 21. Qc3 {[%clk 00:10:38]} {[%emt 00:01:36]}
Nh4 {[%clk 00:09:37]} {[%emt 00:01:32]} 22. g3 {[%clk 00:09:58]} {[%emt
00:00:46]} Qg4 {[%clk 00:08:29]} {[%emt 00:01:08]} 23. Rc1 {[%clk 00:07:56]}
{[%emt 00:02:12]} Nf3+ {[%clk 00:07:04]} {[%emt 00:01:29]} 24. Kg2 {[%clk
00:07:30]} {[%emt 00:00:32]} Nh4+ {[%clk 00:06:39]} {[%emt 00:00:29]} 25. Kf1
{[%clk 00:06:27]} {[%emt 00:01:08]} Qh3+ {[%clk 00:06:21]} {[%emt 00:00:22]} 26.
Ke2 {[%clk 00:05:11]} {[%emt 00:01:23]} Qg4+ {[%clk 00:06:11]} {[%emt
00:00:10]} 27. Kf1 {[%clk 00:04:56]} {[%emt 00:00:24]} Qh3+ {[%clk 00:06:06]}
{[%emt 00:00:10]} 28. Ke1 {[%clk 00:04:20]} {[%emt 00:00:41]} Nf3+ {[%clk
00:05:38]} {[%emt 00:00:32]} 29. Ke2 {[%clk 00:01:08]} {[%emt 00:03:19]} Nxh2
{[%clk 00:05:17]} {[%emt 00:00:26]} 30. Qxc6 {[%clk 00:00:34]} {[%emt
00:00:39]} Qg4+ {[%clk 00:04:51]} {[%emt 00:00:27]} 31. Kd3 {[%clk 00:00:12]}
{[%emt 00:00:30]} Qf5+ {[%clk 00:03:49]} {[%emt 00:01:06]} 32. Kc3 {[%clk
00:00:15]} {[%emt 00:00:04]} Qxf2 {[%clk 00:03:11]} {[%emt 00:00:43]} 33. Bxg6
{[%clk 00:00:08]} {[%emt 00:00:12]} Qxe3+ {[%clk 00:02:43]} {[%emt 00:00:32]}
34. Bd3 {[%clk 00:00:11]} {[%emt 00:00:03]} Nf3 {[%clk 00:02:06]} {[%emt
00:00:41]} 35. Qf6 {[%clk 00:00:08]} {[%emt 00:00:08]} Qd2+ {[%clk 00:01:57]}
{[%emt 00:00:14]} 36. Kb3 {[%clk 00:00:00]} {[%emt 00:00:09]} 0-1